[Event "Early-Titled-Tuesday-Blitz-October-03-2023"]
[Site "Chess.com"]
[Date "2023.10.03"]
[Round "10"]
[White "SharapovEvgeny"]
[Black "hurricane7791"]
[Result "1-0"]
[WhiteElo "2605"]
[BlackElo "2689"]
[TimeControl "180+1"]
[EndTime "9:57:18 PDT"]
[Termination "SharapovEvgeny won by resignation"]

1. e4 {[%clk 0:03:00.1]} 1... c5 {[%clk 0:02:53.2]} 2. Nf3 {[%clk 0:02:59.2]}
2... d6 {[%clk 0:02:51.1]} 3. d4 {[%clk 0:02:58.8]} 3... cxd4 {[%clk 0:02:52]}
4. Nxd4 {[%clk 0:02:59.2]} 4... Nf6 {[%clk 0:02:50.4]} 5. Nc3 {[%clk 0:02:59.4]}
5... a6 {[%clk 0:02:51.1]} 6. g3 {[%clk 0:02:59.2]} 6... e5 {[%clk 0:02:51.2]}
7. Nb3 {[%clk 0:02:59.1]} 7... b5 {[%clk 0:02:51.1]} 8. Bg5 {[%clk 0:02:55.6]}
8... Nbd7 {[%clk 0:02:49.6]} 9. a4 {[%clk 0:02:54.2]} 9... b4 {[%clk 0:02:49.9]}
10. Nd5 {[%clk 0:02:54.3]} 10... Bb7 {[%clk 0:02:50.4]} 11. a5 {[%clk
0:02:43.6]} 11... Rc8 {[%clk 0:02:42.4]} 12. Bg2 {[%clk 0:02:39.6]} 12... Be7
{[%clk 0:02:35.6]} 13. Bxf6 {[%clk 0:02:39.3]} 13... Nxf6 {[%clk 0:02:35.4]} 14.
Nxf6+ {[%clk 0:02:39.2]} 14... Bxf6 {[%clk 0:02:35.4]} 15. O-O {[%clk
0:02:39.5]} 15... O-O {[%clk 0:02:30.4]} 16. Qd2 {[%clk 0:02:39.5]} 16... Rc4
{[%clk 0:02:29.2]} 17. Rfd1 {[%clk 0:02:25.3]} 17... Be7 {[%clk 0:02:27.1]} 18.
Ra4 {[%clk 0:02:12]} 18... Qc7 {[%clk 0:02:08.2]} 19. Rc1 {[%clk 0:01:42.9]}
19... d5 {[%clk 0:01:33.5]} 20. exd5 {[%clk 0:01:40.4]} 20... Rd8 {[%clk
0:01:33.9]} 21. c3 {[%clk 0:01:26.5]} 21... h6 {[%clk 0:01:14.1]} 22. h4 {[%clk
0:01:20.4]} 22... e4 {[%clk 0:01:04.1]} 23. cxb4 {[%clk 0:01:15.9]} 23... Rxd5
{[%clk 0:00:58]} 24. Rxc4 {[%clk 0:01:03.6]} 24... Qxc4 {[%clk 0:00:58.5]} 25.
Qc3 {[%clk 0:01:01.1]} 25... Rd1+ {[%clk 0:00:42.8]} 26. Kh2 {[%clk 0:01:01.1]}
26... Qe2 {[%clk 0:00:39.1]} 27. Qe3 {[%clk 0:00:46.6]} 27... Qxe3 {[%clk
0:00:17.5]} 28. fxe3 {[%clk 0:00:46.2]} 28... Bd5 {[%clk 0:00:18]} 29. Nc5
{[%clk 0:00:35.8]} 29... Rd2 {[%clk 0:00:18.6]} 30. Ra1 {[%clk 0:00:23.6]} 30...
Rxb2 {[%clk 0:00:18.6]} 31. Nxa6 {[%clk 0:00:19.1]} 31... g5 {[%clk 0:00:16.9]}
32. hxg5 {[%clk 0:00:18.4]} 32... Bxg5 {[%clk 0:00:16]} 33. Nc7 {[%clk
0:00:15.8]} 33... Bc4 {[%clk 0:00:10.9]} 34. a6 {[%clk 0:00:15.6]} 34... Bxe3
{[%clk 0:00:11.5]} 35. a7 {[%clk 0:00:14.7]} 35... Bxa7 {[%clk 0:00:12.2]} 36.
Rxa7 {[%clk 0:00:13.8]} 36... Bf1 {[%clk 0:00:12.8]} 37. b5 {[%clk 0:00:12.1]}
37... Rxg2+ {[%clk 0:00:12.5]} 38. Kh1 {[%clk 0:00:11.8]} 38... e3 {[%clk
0:00:12.2]} 39. Nd5 {[%clk 0:00:10]} 39... e2 {[%clk 0:00:11.3]} 40. Re7 {[%clk
0:00:09.7]} 40... Rxg3 {[%clk 0:00:10.1]} 41. b6 {[%clk 0:00:09.4]} 41... Rb3
{[%clk 0:00:10.6]} 42. Kg1 {[%clk 0:00:07.7]} 42... Kf8 {[%clk 0:00:10.1]} 43.
Re5 {[%clk 0:00:06.5]} 43... Rb5 {[%clk 0:00:10.1]} 44. Kf2 {[%clk 0:00:06.3]}
44... f6 {[%clk 0:00:09]} 45. Nxf6 {[%clk 0:00:05.2]} 45... Rxb6 {[%clk
0:00:07.6]} 46. Nd7+ {[%clk 0:00:05]} 46... Kf7 {[%clk 0:00:07.9]} 47. Nxb6
{[%clk 0:00:05.1]} 47... Kf6 {[%clk 0:00:08.8]} 48. Re3 {[%clk 0:00:05]} 1-0

[Event "Early-Titled-Tuesday-Blitz-October-03-2023"]
[Site "Chess.com"]
[Date "2023.10.03"]
[Round "10"]
[White "lluiss"]
[Black "ChampStan"]
[Result "1/2-1/2"]
[WhiteElo "2207"]
[BlackElo "2115"]
[TimeControl "180+1"]
[EndTime "9:57:18 PDT"]
[Termination "Game drawn by agreement"]

1. e4 {[%clk 0:03:00.9]} 1... d5 {[%clk 0:02:57]} 2. e5 {[%clk 0:03:00]} 2...
Nc6 {[%clk 0:02:55.7]} 3. d4 {[%clk 0:02:56.7]} 3... e6 {[%clk 0:02:55]} 4. Nf3
{[%clk 0:02:50.6]} 4... Nge7 {[%clk 0:02:55.2]} 5. c3 {[%clk 0:02:49.1]} 5...
Nf5 {[%clk 0:02:54.8]} 6. Bd3 {[%clk 0:02:49.2]} 6... Nh4 {[%clk 0:02:52.9]} 7.
O-O {[%clk 0:02:38.6]} 7... Be7 {[%clk 0:02:51.7]} 8. Nbd2 {[%clk 0:02:37.1]}
8... O-O {[%clk 0:02:48.2]} 9. Nxh4 {[%clk 0:02:37.1]} 9... Bxh4 {[%clk
0:02:47.8]} 10. Nf3 {[%clk 0:02:37.7]} 10... h6 {[%clk 0:02:46.2]} 11. Nxh4
{[%clk 0:02:30.8]} 11... Qxh4 {[%clk 0:02:47.1]} 12. f4 {[%clk 0:02:21]} 12...
Qd8 {[%clk 0:02:44.2]} 13. Qg4 {[%clk 0:02:16.3]} 13... Ne7 {[%clk 0:02:41.8]}
14. Qh3 {[%clk 0:02:12.4]} 14... c5 {[%clk 0:02:36]} 15. Be3 {[%clk 0:02:11.6]}
15... cxd4 {[%clk 0:02:34.6]} 16. cxd4 {[%clk 0:02:11.8]} 16... Qb6 {[%clk
0:02:33.3]} 17. Rf2 {[%clk 0:02:01.2]} 17... Nf5 {[%clk 0:02:15.7]} 18. Bxf5
{[%clk 0:01:42.7]} 18... exf5 {[%clk 0:02:16.6]} 19. Qf3 {[%clk 0:01:28.2]}
19... Be6 {[%clk 0:01:59.6]} 20. Rc2 {[%clk 0:01:27.9]} 20... Rac8 {[%clk
0:01:54.4]} 21. Rac1 {[%clk 0:01:28.4]} 21... Rxc2 {[%clk 0:01:45.5]} 22. Rxc2
{[%clk 0:01:29.3]} 22... Qb5 {[%clk 0:01:45]} 23. Qf1 {[%clk 0:01:17.9]} 23...
Qxf1+ {[%clk 0:01:37.1]} 24. Kxf1 {[%clk 0:01:18.8]} 24... Rc8 {[%clk
0:01:35.5]} 25. Rxc8+ {[%clk 0:01:17.5]} 25... Bxc8 {[%clk 0:01:36.4]} 26. Ke2
{[%clk 0:01:17]} 26... Kf8 {[%clk 0:01:37]} 27. Kd2 {[%clk 0:01:17.3]} 27... Ke7
{[%clk 0:01:37.1]} 28. Kc3 {[%clk 0:01:17.6]} 28... Kd7 {[%clk 0:01:36.9]} 29.
Bd2 {[%clk 0:01:17.5]} 29... Kc6 {[%clk 0:01:37.2]} 30. b4 {[%clk 0:01:16.7]}
30... Kb5 {[%clk 0:01:37.2]} 31. Kb3 {[%clk 0:01:16]} 31... f6 {[%clk 0:01:35]}
32. a4+ {[%clk 0:01:15.8]} 32... Kc6 {[%clk 0:01:34.5]} 33. b5+ {[%clk
0:01:15.8]} 33... Kb6 {[%clk 0:01:31.9]} 34. exf6 {[%clk 0:01:15.8]} 34... gxf6
{[%clk 0:01:31.5]} 35. Bb4 {[%clk 0:01:14.1]} 35... Be6 {[%clk 0:01:27.2]} 36.
Bc5+ {[%clk 0:01:12.4]} 36... Kc7 {[%clk 0:01:24.7]} 37. Be7 {[%clk 0:01:05.5]}
37... Bf7 {[%clk 0:01:21]} 38. Bxf6 {[%clk 0:01:04.7]} 38... Bg6 {[%clk
0:01:11.2]} 39. Be7 {[%clk 0:00:58]} 39... Bf7 {[%clk 0:01:07.9]} 40. Bc5 {[%clk
0:00:57.8]} 40... b6 {[%clk 0:01:02.3]} 41. Bf8 {[%clk 0:00:57]} 41... h5 {[%clk
0:01:01.1]} 42. g3 {[%clk 0:00:52.8]} 42... Be8 {[%clk 0:00:58.3]} 43. Kb4
{[%clk 0:00:51.3]} 43... Kb7 {[%clk 0:00:56.1]} 44. Bg7 {[%clk 0:00:51]} 44...
Bf7 {[%clk 0:00:50.5]} 45. Be5 {[%clk 0:00:50.3]} 45... Be6 {[%clk 0:00:50.2]}
46. h3 {[%clk 0:00:49.4]} 46... Bf7 {[%clk 0:00:49.9]} 47. Kc3 {[%clk
0:00:46.9]} 47... Be8 {[%clk 0:00:48]} 48. Bf6 {[%clk 0:00:45]} 48... Bf7 {[%clk
0:00:45.3]} 49. Be7 {[%clk 0:00:42.6]} 49... Be8 {[%clk 0:00:44.8]} 50. Bb4
{[%clk 0:00:41.8]} 50... a6 {[%clk 0:00:40.5]} 51. bxa6+ {[%clk 0:00:39.7]}
51... Kxa6 {[%clk 0:00:40]} 52. Kb3 {[%clk 0:00:40]} 52... Bd7 {[%clk
0:00:35.9]} 53. Bd2 {[%clk 0:00:38.2]} 53... Be8 {[%clk 0:00:33.1]} 54. Kb4
{[%clk 0:00:38.2]} 54... Bd7 {[%clk 0:00:30.9]} 55. Be3 {[%clk 0:00:37.1]} 55...
Be8 {[%clk 0:00:29.4]} 56. Bf2 {[%clk 0:00:37.1]} 56... Bd7 {[%clk 0:00:28.4]}
57. Be1 {[%clk 0:00:36.3]} 57... Be8 {[%clk 0:00:26.4]} 58. Ka3 {[%clk
0:00:34.1]} 58... Bd7 {[%clk 0:00:25.7]} 59. Kb3 {[%clk 0:00:33.9]} 59... Be8
{[%clk 0:00:23.4]} 1/2-1/2

[Event "Early-Titled-Tuesday-Blitz-October-03-2023"]
[Site "Chess.com"]
[Date "2023.10.03"]
[Round "10"]
[White "knightinshiningarmour16"]
[Black "Dmitry_Konenkin"]
[Result "0-1"]
[WhiteElo "2119"]
[BlackElo "2360"]
[TimeControl "180+1"]
[EndTime "9:57:22 PDT"]
[Termination "Dmitry_Konenkin won by checkmate"]

1. d4 {[%clk 0:03:00]} 1... d6 {[%clk 0:02:57.9]} 2. c4 {[%clk 0:02:58.4]} 2...
e5 {[%clk 0:02:58.2]} 3. dxe5 {[%clk 0:02:58.1]} 3... dxe5 {[%clk 0:02:59.1]} 4.
Qxd8+ {[%clk 0:02:58]} 4... Kxd8 {[%clk 0:03:00]} 5. Nf3 {[%clk 0:02:58.1]} 5...
f6 {[%clk 0:02:59.6]} 6. Nc3 {[%clk 0:02:57.4]} 6... Be6 {[%clk 0:03:00]} 7. e4
{[%clk 0:02:56.3]} 7... Nd7 {[%clk 0:03:00.6]} 8. Be3 {[%clk 0:02:52.9]} 8... c6
{[%clk 0:03:01.1]} 9. O-O-O {[%clk 0:02:52.4]} 9... Kc7 {[%clk 0:03:01.6]} 10.
Kb1 {[%clk 0:02:51.3]} 10... Nh6 {[%clk 0:03:01.3]} 11. h3 {[%clk 0:02:51.2]}
11... Nf7 {[%clk 0:03:00.3]} 12. Be2 {[%clk 0:02:48.9]} 12... a6 {[%clk
0:02:48.5]} 13. a3 {[%clk 0:02:48]} 13... b5 {[%clk 0:02:39.6]} 14. cxb5 {[%clk
0:02:46.5]} 14... axb5 {[%clk 0:02:40.5]} 15. Nh4 {[%clk 0:02:41.2]} 15... g6
{[%clk 0:02:26.3]} 16. f4 {[%clk 0:02:39.4]} 16... Bh6 {[%clk 0:02:12]} 17. g3
{[%clk 0:02:27.6]} 17... Nd6 {[%clk 0:01:49.5]} 18. Ng2 {[%clk 0:02:16]} 18...
Nc4 {[%clk 0:01:45.1]} 19. Bc1 {[%clk 0:02:14.7]} 19... Rhb8 {[%clk 0:01:33.9]}
20. g4 {[%clk 0:02:14.1]} 20... b4 {[%clk 0:01:27.6]} 21. axb4 {[%clk
0:02:13.2]} 21... Rxb4 {[%clk 0:01:28.5]} 22. Bxc4 {[%clk 0:02:04.9]} 22... Bxc4
{[%clk 0:01:24.3]} 23. f5 {[%clk 0:01:59.7]} 23... Bxc1 {[%clk 0:01:15.2]} 24.
Kxc1 {[%clk 0:01:58.6]} 24... Bb3 {[%clk 0:01:11.2]} 25. Rde1 {[%clk 0:01:51.6]}
25... Nc5 {[%clk 0:01:03.4]} 26. Kd2 {[%clk 0:01:43.5]} 26... Rd8+ {[%clk
0:00:55.2]} 27. Ke3 {[%clk 0:01:43.4]} 27... Rd3+ {[%clk 0:00:45.6]} 28. Kf2
{[%clk 0:01:42.5]} 28... Bc4 {[%clk 0:00:37.9]} 29. Nd1 {[%clk 0:01:24.5]} 29...
Bb5 {[%clk 0:00:29.8]} 30. fxg6 {[%clk 0:01:24.2]} 30... hxg6 {[%clk 0:00:27.7]}
31. Nh4 {[%clk 0:01:23.9]} 31... Nxe4+ {[%clk 0:00:25.6]} 32. Kg1 {[%clk
0:01:15.5]} 32... Ng5 {[%clk 0:00:17.9]} 33. Rf1 {[%clk 0:01:07.7]} 33... Nxh3+
{[%clk 0:00:15.9]} 34. Rxh3 {[%clk 0:01:03.3]} 34... Rxh3 {[%clk 0:00:15.8]} 35.
Nxg6 {[%clk 0:01:02.6]} 35... Rxg4+ {[%clk 0:00:16.1]} 36. Kf2 {[%clk
0:01:02.8]} 36... Bxf1 {[%clk 0:00:15.6]} 37. Ne7 {[%clk 0:00:58.3]} 37... Bc4
{[%clk 0:00:12.6]} 38. Ne3 {[%clk 0:00:56.5]} 38... Rxe3 {[%clk 0:00:10.4]} 39.
Kxe3 {[%clk 0:00:56.5]} 39... Rg2 {[%clk 0:00:10.2]} 40. b4 {[%clk 0:00:55.3]}
40... Rb2 {[%clk 0:00:10]} 41. Ng8 {[%clk 0:00:54.5]} 41... f5 {[%clk
0:00:08.7]} 42. Ne7 {[%clk 0:00:52.8]} 42... Be6 {[%clk 0:00:08.5]} 43. b5
{[%clk 0:00:51.6]} 43... Rxb5 {[%clk 0:00:08.5]} 44. Kf3 {[%clk 0:00:51.5]}
44... Rb3+ {[%clk 0:00:08.6]} 45. Ke2 {[%clk 0:00:51.4]} 45... Kd6 {[%clk
0:00:08.8]} 46. Ng6 {[%clk 0:00:50.1]} 46... f4 {[%clk 0:00:08.9]} 47. Nh4
{[%clk 0:00:48.9]} 47... Bg4+ {[%clk 0:00:08.8]} 48. Kf2 {[%clk 0:00:48.9]}
48... Rb2+ {[%clk 0:00:08.8]} 49. Kg1 {[%clk 0:00:47.7]} 49... e4 {[%clk
0:00:09.2]} 50. Ng2 {[%clk 0:00:47.9]} 50... Ke5 {[%clk 0:00:08.6]} 51. Kf1
{[%clk 0:00:46.3]} 51... Bh3 {[%clk 0:00:08.2]} 52. Kg1 {[%clk 0:00:45.8]} 52...
Rxg2+ {[%clk 0:00:07.9]} 53. Kh1 {[%clk 0:00:46.2]} 53... Rb2 {[%clk 0:00:06.7]}
54. Kg1 {[%clk 0:00:46.6]} 54... e3 {[%clk 0:00:07]} 55. Kh1 {[%clk 0:00:46.8]}
55... Bg4 {[%clk 0:00:07.3]} 56. Kg1 {[%clk 0:00:47.1]} 56... f3 {[%clk
0:00:07.9]} 57. Kf1 {[%clk 0:00:47.2]} 57... Rg2 {[%clk 0:00:06.7]} 58. Ke1
{[%clk 0:00:46.6]} 58... Rg1# {[%clk 0:00:07.6]} 0-1

[Event "Early-Titled-Tuesday-Blitz-October-03-2023"]
[Site "Chess.com"]
[Date "2023.10.03"]
[Round "10"]
[White "scarabee43"]
[Black "Zavgorodniy_Sergiy"]
[Result "1-0"]
[WhiteElo "2805"]
[BlackElo "2633"]
[TimeControl "180+1"]
[EndTime "9:57:23 PDT"]
[Termination "scarabee43 won on time"]

1. d4 {[%clk 0:03:00.9]} 1... Nf6 {[%clk 0:02:59.6]} 2. c4 {[%clk 0:03:00.8]}
2... e6 {[%clk 0:02:59.9]} 3. Nf3 {[%clk 0:03:01]} 3... Bb4+ {[%clk 0:02:59.8]}
4. Bd2 {[%clk 0:03:00.4]} 4... Qe7 {[%clk 0:02:59.3]} 5. g3 {[%clk 0:02:57.9]}
5... Nc6 {[%clk 0:02:59.4]} 6. Bg2 {[%clk 0:02:57.6]} 6... Bxd2+ {[%clk
0:02:59.9]} 7. Qxd2 {[%clk 0:02:55.8]} 7... Ne4 {[%clk 0:02:58.7]} 8. Qc2 {[%clk
0:02:56.1]} 8... Qb4+ {[%clk 0:02:57.7]} 9. Nc3 {[%clk 0:02:40.9]} 9... Nxc3
{[%clk 0:02:55.9]} 10. Qxc3 {[%clk 0:02:41.2]} 10... Qxc3+ {[%clk 0:02:53.9]}
11. bxc3 {[%clk 0:02:41.9]} 11... Na5 {[%clk 0:02:28.3]} 12. c5 {[%clk
0:02:39.1]} 12... d6 {[%clk 0:02:25]} 13. cxd6 {[%clk 0:02:37.4]} 13... cxd6
{[%clk 0:02:24.6]} 14. Nd2 {[%clk 0:02:27.9]} 14... Ke7 {[%clk 0:02:21.3]} 15.
c4 {[%clk 0:02:23.9]} 15... Bd7 {[%clk 0:02:14.2]} 16. O-O {[%clk 0:02:24.2]}
16... Rhc8 {[%clk 0:02:10.8]} 17. Rfc1 {[%clk 0:02:24.4]} 17... Rab8 {[%clk
0:02:10.1]} 18. e3 {[%clk 0:02:21.3]} 18... Bc6 {[%clk 0:02:02.3]} 19. Bf1
{[%clk 0:02:17.9]} 19... b6 {[%clk 0:01:49.8]} 20. Bd3 {[%clk 0:02:15]} 20...
Bb7 {[%clk 0:01:48.2]} 21. f3 {[%clk 0:02:07.1]} 21... Rc7 {[%clk 0:01:47.3]}
22. Nb3 {[%clk 0:02:03]} 22... Nc6 {[%clk 0:01:43.7]} 23. Kf2 {[%clk 0:01:59.1]}
23... Ba6 {[%clk 0:01:40.5]} 24. Be2 {[%clk 0:01:51.8]} 24... Rbc8 {[%clk
0:01:29.1]} 25. a3 {[%clk 0:01:41.5]} 25... Nb8 {[%clk 0:01:16.3]} 26. Nd2
{[%clk 0:01:17.6]} 26... d5 {[%clk 0:01:15.6]} 27. Rc3 {[%clk 0:01:14.5]} 27...
Bxc4 {[%clk 0:01:13.4]} 28. Nxc4 {[%clk 0:01:10.9]} 28... dxc4 {[%clk
0:01:14.3]} 29. a4 {[%clk 0:01:11.1]} 29... e5 {[%clk 0:01:00.1]} 30. dxe5
{[%clk 0:01:05.1]} 30... Nc6 {[%clk 0:00:57]} 31. f4 {[%clk 0:00:55.1]} 31...
Na5 {[%clk 0:00:49.9]} 32. Rac1 {[%clk 0:00:55.1]} 32... Rd8 {[%clk 0:00:43.9]}
33. R1c2 {[%clk 0:00:54.7]} 33... Rc5 {[%clk 0:00:40.8]} 34. e4 {[%clk
0:00:51.2]} 34... a6 {[%clk 0:00:37]} 35. Ke3 {[%clk 0:00:48.5]} 35... b5 {[%clk
0:00:36.2]} 36. axb5 {[%clk 0:00:45.7]} 36... axb5 {[%clk 0:00:37.1]} 37. Rb2
{[%clk 0:00:45.7]} 37... Nc6 {[%clk 0:00:18.6]} 38. Rb1 {[%clk 0:00:34.3]} 38...
Ra8 {[%clk 0:00:15.6]} 39. Rd1 {[%clk 0:00:30]} 39... Ra2 {[%clk 0:00:11.9]} 40.
Rd5 {[%clk 0:00:27.1]} 40... Rxd5 {[%clk 0:00:11.6]} 41. exd5 {[%clk 0:00:27.6]}
41... Nb4 {[%clk 0:00:11.1]} 42. d6+ {[%clk 0:00:27.1]} 42... Kd8 {[%clk
0:00:10.6]} 43. Bf3 {[%clk 0:00:25.6]} 43... Nc2+ {[%clk 0:00:09.8]} 44. Ke4
{[%clk 0:00:24.3]} 44... Na3 {[%clk 0:00:09.3]} 45. f5 {[%clk 0:00:19.3]} 45...
b4 {[%clk 0:00:09.5]} 46. Rc1 {[%clk 0:00:19.9]} 46... b3 {[%clk 0:00:06.5]} 47.
e6 {[%clk 0:00:20.2]} 47... fxe6 {[%clk 0:00:06.8]} 48. fxe6 {[%clk 0:00:20.6]}
48... b2 {[%clk 0:00:07.4]} 49. e7+ {[%clk 0:00:18.1]} 49... Ke8 {[%clk
0:00:04.4]} 50. Ke5 {[%clk 0:00:18.3]} 1-0

[Event "Early-Titled-Tuesday-Blitz-October-03-2023"]
[Site "Chess.com"]
[Date "2023.10.03"]
[Round "10"]
[White "SashaKuzhilniy"]
[Black "Abund"]
[Result "1-0"]
[WhiteElo "2646"]
[BlackElo "2762"]
[TimeControl "180+1"]
[EndTime "9:57:24 PDT"]
[Termination "SashaKuzhilniy won by resignation"]

1. b3 {[%clk 0:03:00.9]} 1... d5 {[%clk 0:02:55.2]} 2. Bb2 {[%clk 0:03:01.1]}
2... Nf6 {[%clk 0:02:55.7]} 3. Nf3 {[%clk 0:03:01.1]} 3... e6 {[%clk 0:02:56.1]}
4. g3 {[%clk 0:02:59.9]} 4... Be7 {[%clk 0:02:56.4]} 5. Bg2 {[%clk 0:03:00.6]}
5... O-O {[%clk 0:02:57]} 6. O-O {[%clk 0:03:01.2]} 6... b6 {[%clk 0:02:57.6]}
7. d3 {[%clk 0:03:01.6]} 7... Bb7 {[%clk 0:02:58.3]} 8. Nbd2 {[%clk 0:03:02.1]}
8... Nbd7 {[%clk 0:02:58.3]} 9. c4 {[%clk 0:03:02.6]} 9... c5 {[%clk 0:02:57.4]}
10. Ne5 {[%clk 0:03:01.1]} 10... Nxe5 {[%clk 0:02:53.9]} 11. Bxe5 {[%clk
0:03:02]} 11... Nd7 {[%clk 0:02:53.2]} 12. Bb2 {[%clk 0:03:01.8]} 12... Bf6
{[%clk 0:02:53.6]} 13. Qc1 {[%clk 0:03:01.5]} 13... Rc8 {[%clk 0:02:52.5]} 14.
a3 {[%clk 0:02:59.9]} 14... h6 {[%clk 0:02:51.2]} 15. Rb1 {[%clk 0:02:55.3]}
15... Qc7 {[%clk 0:02:50.3]} 16. Bxf6 {[%clk 0:02:49.5]} 16... Nxf6 {[%clk
0:02:51.2]} 17. Qb2 {[%clk 0:02:40.9]} 17... Rfd8 {[%clk 0:02:44.2]} 18. b4
{[%clk 0:02:36.6]} 18... dxc4 {[%clk 0:02:42.4]} 19. Bxb7 {[%clk 0:02:26.8]}
19... Qxb7 {[%clk 0:02:35.5]} 20. Nxc4 {[%clk 0:02:22.9]} 20... h5 {[%clk
0:02:33.7]} 21. h4 {[%clk 0:02:12.8]} 21... b5 {[%clk 0:02:14]} 22. bxc5 {[%clk
0:02:09.1]} 22... Rxc5 {[%clk 0:02:11.2]} 23. Ne3 {[%clk 0:02:03.5]} 23... a6
{[%clk 0:01:57.8]} 24. Rfc1 {[%clk 0:02:02.1]} 24... Rdc8 {[%clk 0:01:56.7]} 25.
Rxc5 {[%clk 0:02:01.8]} 25... Rxc5 {[%clk 0:01:57.6]} 26. Rc1 {[%clk 0:02:02.3]}
26... Rxc1+ {[%clk 0:01:46.1]} 27. Qxc1 {[%clk 0:02:03.2]} 27... a5 {[%clk
0:01:46.8]} 28. Qc5 {[%clk 0:01:36.7]} 28... b4 {[%clk 0:01:47.1]} 29. Qxa5
{[%clk 0:01:36.2]} 29... b3 {[%clk 0:01:47.6]} 30. Qe1 {[%clk 0:01:36.3]} 30...
b2 {[%clk 0:01:47.3]} 31. Qb1 {[%clk 0:01:36.4]} 31... Qb3 {[%clk 0:01:38.7]}
32. Nc4 {[%clk 0:01:33.6]} 32... Ng4 {[%clk 0:01:22]} 33. Qxb2 {[%clk
0:01:29.2]} 33... Qd1+ {[%clk 0:01:21.5]} 34. Kg2 {[%clk 0:01:28.4]} 34... Qe1
{[%clk 0:01:15.3]} 35. Qb8+ {[%clk 0:01:14.9]} 35... Kh7 {[%clk 0:01:14.9]} 36.
Qf4 {[%clk 0:01:15.5]} 36... f5 {[%clk 0:01:00.7]} 37. e3 {[%clk 0:00:56.5]}
37... Qd1 {[%clk 0:00:58]} 38. Ne5 {[%clk 0:00:55.5]} 38... Nf6 {[%clk
0:00:51.4]} 39. a4 {[%clk 0:00:52.2]} 39... Nd5 {[%clk 0:00:46.3]} 40. Qf3
{[%clk 0:00:51.4]} 40... Qxa4 {[%clk 0:00:34.8]} 41. Qxh5+ {[%clk 0:00:50.5]}
41... Kg8 {[%clk 0:00:35.4]} 42. Qf7+ {[%clk 0:00:48.8]} 42... Kh7 {[%clk
0:00:36]} 43. Qxe6 {[%clk 0:00:48.1]} 43... Nxe3+ {[%clk 0:00:24]} 44. fxe3
{[%clk 0:00:48.2]} 44... Qc2+ {[%clk 0:00:24.3]} 45. Kh3 {[%clk 0:00:43.6]}
45... Qf2 {[%clk 0:00:23.7]} 46. Qd5 {[%clk 0:00:29]} 46... Qxe3 {[%clk
0:00:22.3]} 47. Nf3 {[%clk 0:00:26.4]} 47... g6 {[%clk 0:00:12]} 48. Ng5+ {[%clk
0:00:20.6]} 48... Kh6 {[%clk 0:00:11]} 49. Qe5 {[%clk 0:00:18.3]} 49... Qxe5
{[%clk 0:00:03.6]} 50. Nf7+ {[%clk 0:00:18.4]} 50... Kg7 {[%clk 0:00:04.5]} 51.
Nxe5 {[%clk 0:00:19.3]} 51... Kf6 {[%clk 0:00:05.4]} 52. d4 {[%clk 0:00:18.4]}
52... Ke6 {[%clk 0:00:04.9]} 53. Nxg6 {[%clk 0:00:18.4]} 1-0

[Event "Early-Titled-Tuesday-Blitz-October-03-2023"]
[Site "Chess.com"]
[Date "2023.10.03"]
[Round "10"]
[White "verrbaa"]
[Black "LeoWin2012"]
[Result "1-0"]
[WhiteElo "2465"]
[BlackElo "2320"]
[TimeControl "180+1"]
[EndTime "9:57:25 PDT"]
[Termination "verrbaa won on time"]

1. Nf3 {[%clk 0:03:00.9]} 1... Nf6 {[%clk 0:02:59]} 2. g3 {[%clk 0:03:00.7]}
2... d5 {[%clk 0:02:58.9]} 3. Bg2 {[%clk 0:03:00.9]} 3... g6 {[%clk 0:02:58.5]}
4. O-O {[%clk 0:03:01.1]} 4... Bg7 {[%clk 0:02:58.6]} 5. c4 {[%clk 0:03:01.5]}
5... c6 {[%clk 0:02:57.5]} 6. b3 {[%clk 0:02:37]} 6... Ne4 {[%clk 0:02:53.2]} 7.
d4 {[%clk 0:02:36.9]} 7... O-O {[%clk 0:02:51.2]} 8. Bb2 {[%clk 0:02:36.1]} 8...
Nd7 {[%clk 0:02:37.6]} 9. Nbd2 {[%clk 0:02:13.1]} 9... Ndf6 {[%clk 0:02:34.5]}
10. Ne5 {[%clk 0:02:07.7]} 10... Bf5 {[%clk 0:02:24.4]} 11. f3 {[%clk
0:02:00.5]} 11... Nxd2 {[%clk 0:02:20.1]} 12. Qxd2 {[%clk 0:02:01.4]} 12... Nd7
{[%clk 0:02:18.2]} 13. Nd3 {[%clk 0:01:59.4]} 13... Re8 {[%clk 0:02:15.4]} 14.
e4 {[%clk 0:01:57.5]} 14... Be6 {[%clk 0:02:15.1]} 15. Nf4 {[%clk 0:01:52.8]}
15... Nf8 {[%clk 0:02:09.6]} 16. Nxe6 {[%clk 0:01:47.6]} 16... Nxe6 {[%clk
0:02:09]} 17. cxd5 {[%clk 0:01:45.5]} 17... cxd5 {[%clk 0:02:09.9]} 18. e5
{[%clk 0:01:44]} 18... Qb6 {[%clk 0:01:57.9]} 19. f4 {[%clk 0:01:17.1]} 19...
Nc7 {[%clk 0:01:54.7]} 20. f5 {[%clk 0:01:15.2]} 20... e6 {[%clk 0:01:53.8]} 21.
f6 {[%clk 0:01:07.6]} 21... Bf8 {[%clk 0:01:53.9]} 22. h4 {[%clk 0:01:02.8]}
22... Nb5 {[%clk 0:01:44.6]} 23. h5 {[%clk 0:00:59]} 23... Rac8 {[%clk
0:01:40.3]} 24. hxg6 {[%clk 0:00:56.2]} 24... hxg6 {[%clk 0:01:39.2]} 25. Bf3
{[%clk 0:00:53.1]} 25... Na3 {[%clk 0:01:29.6]} 26. Rac1 {[%clk 0:00:46.3]}
26... Nb5 {[%clk 0:01:26.3]} 27. Kg2 {[%clk 0:00:43.1]} 27... Rc6 {[%clk
0:00:56]} 28. Qg5 {[%clk 0:00:22.4]} 28... Rec8 {[%clk 0:00:50.7]} 29. Rxc6
{[%clk 0:00:14]} 29... Qxc6 {[%clk 0:00:46]} 30. Bd1 {[%clk 0:00:13.7]} 30...
Nxd4 {[%clk 0:00:17.8]} 31. Bxd4 {[%clk 0:00:12.9]} 31... Qc1 {[%clk 0:00:17.4]}
32. Qxc1 {[%clk 0:00:11.7]} 32... Rxc1 {[%clk 0:00:16.9]} 33. Bf3 {[%clk
0:00:09.8]} 33... Rc2+ {[%clk 0:00:15.6]} 34. Rf2 {[%clk 0:00:10.2]} 34... Rc6
{[%clk 0:00:12.5]} 35. g4 {[%clk 0:00:09.2]} 35... a6 {[%clk 0:00:12.3]} 36. Re2
{[%clk 0:00:09.2]} 36... b5 {[%clk 0:00:12.1]} 37. g5 {[%clk 0:00:09.3]} 37...
Ba3 {[%clk 0:00:11.7]} 38. Kf2 {[%clk 0:00:09.4]} 38... Bc1 {[%clk 0:00:11.8]}
39. Be3 {[%clk 0:00:09.6]} 39... Ba3 {[%clk 0:00:11.3]} 40. Ke1 {[%clk
0:00:07.9]} 40... Kf8 {[%clk 0:00:11.2]} 41. Kd1 {[%clk 0:00:07.9]} 41... Bb4
{[%clk 0:00:09.6]} 42. Rc2 {[%clk 0:00:07.8]} 42... Rxc2 {[%clk 0:00:08.7]} 43.
Kxc2 {[%clk 0:00:08.7]} 43... Be1 {[%clk 0:00:08.9]} 44. Be2 {[%clk 0:00:08.5]}
44... Ke8 {[%clk 0:00:08.1]} 45. a4 {[%clk 0:00:08.3]} 45... bxa4 {[%clk
0:00:06.4]} 46. bxa4 {[%clk 0:00:09.2]} 46... a5 {[%clk 0:00:06.7]} 47. Bd2
{[%clk 0:00:07.3]} 47... Bxd2 {[%clk 0:00:04.1]} 48. Kxd2 {[%clk 0:00:08.2]}
48... Kd7 {[%clk 0:00:04.2]} 49. Kc3 {[%clk 0:00:08.5]} 49... Kc6 {[%clk
0:00:04.1]} 50. Kd4 {[%clk 0:00:09.2]} 50... Kb6 {[%clk 0:00:01.8]} 51. Bd3
{[%clk 0:00:09.5]} 1-0